Cogmind - Beta 17.1 @@@ ROGUE MODE // 2026.09.02 @ 18:27:43 Player: Scuttle Result: Destroyed by S-27 Virus with Autogun Performance ------------- Evolutions (6) 3000 Regions Visited (14) 2800 Robots Destroyed (0) 0 Value Destroyed (20) 20 Prototype IDs (25) 500 Alien Tech Used (0) 0 Bonus (3480) 3480 TOTAL SCORE: 9800 Bonus ------- Pacifist 2680 Entered DSFs 500 Aligned with FarCom 300 Cogmind --------- Core Integrity 0/1150 Matter 300/300 Energy 98/100 System Corruption 0% Temperature Cool (0) Movement Core (50) Location -4/Factory Parts ------- > --- POWER (1) -------- (None) > --- PROPULSION (2) --- (None) > --- UTILITY (14) ----- Enhanced Optical Array > --- WEAPON (2) ------- (None) > --- INVENTORY (5) ---- Enhanced Optical Array Advanced Signal Interpreter Cloak of Protection Centrium Medium Armor Plating Flail Peak State ------------ > --- POWER ------------ (None) > --- PROPULSION ------- (None) > --- UTILITY ---------- Enhanced Optical Array Improved Signal Interpreter Advanced Reaction Control System Hacking Suite > --- WEAPON ----------- (None) > --- INVENTORY -------- Advanced Terrain Scanner Advanced Reaction Control System Cloak of Protection Medium Laser Heavy Hammer [Rating: 20] Favorites ----------- Power None Propulsion None Utility Enhanced Optical Array Device Improved Reaction Control System Processor Enhanced Optical Array Hackware Hacking Suite Protection Centrium Medium Armor Plating Weapon EM Pulse Gun Energy Gun EM Pulse Gun Impact Weapon Heavy Hammer Build | -11 -10 -10 -10 -9 -8 -7 -7 -6 -5 -5 -5 -4 -4 -4 ------- Run | Yrd Mat Min Exi Min Mat Fac DSF Fac Fac Upp Upp Fac Was Fac Slots Evolved 12 | . . . . . 4 2 . 2 2 . . 2 . . Power . | . . . . . . . . . . . . . . . Propulsion . | . . . . . . . . . . . . . . . Utility 12 | . . . . . 4 2 . 2 2 . . 2 . . Weapon . | . . . . . . . . . . . . . . . Parts Attached 12 | 2 . . . . . . . 5 1 2 . . 2 . Power . | . . . . . . . . . . . . . . . Engine . | . . . . . . . . . . . . . . . Core . | . . . . . . . . . . . . . . . Reactor . | . . . . . . . . . . . . . . . Propulsion . | . . . . . . . . . . . . . . . Treads . | . . . . . . . . . . . . . . . Leg . | . . . . . . . . . . . . . . . Wheel . | . . . . . . . . . . . . . . . Hover . | . . . . . . . . . . . . . . . Flight . | . . . . . . . . . . . . . . . Utility 9 | . . . . . . . . 4 1 2 . . 2 . Device 4 | . . . . . . . . 1 . 2 . . 1 . Storage . | . . . . . . . . . . . . . . . Processor 2 | . . . . . . . . 2 . . . . . . Hackware 2 | . . . . . . . . 1 1 . . . . . Protection 1 | . . . . . . . . . . . . . 1 . Artifact . | . . . . . . . . . . . . . . . Weapon 3 | 2 . . . . . . . 1 . . . . . . Energy Gun 2 | 2 . . . . . . . . . . . . . . Energy Cannon . | . . . . . . . . . . . . . . . Ballistic Gun . | . . . . . . . . . . . . . . . Ballistic Cannon . | . . . . . . . . . . . . . . . Launcher . | . . . . . . . . . . . . . . . Special Weapon . | . . . . . . . . . . . . . . . Impact Weapon 1 | . . . . . . . . 1 . . . . . . Slashing Weapon . | . . . . . . . . . . . . . . . Piercing Weapon . | . . . . . . . . . . . . . . . Special Melee Weapon . | . . . . . . . . . . . . . . . Unidentified Prototypes 2 | . . . . . . . . . . . . . 2 . Parts Lost 7 | . . . . . . . 1 1 1 2 1 . . 1 Power . | . . . . . . . . . . . . . . . Propulsion . | . . . . . . . . . . . . . . . Utility 5 | . . . . . . . . 1 1 2 1 . . . Weapon 2 | . . . . . . . 1 . . . . . . 1 Highest Loss Streak 3 | . . . . . . . 1 1 1 2 3 . . 1 To Critical Strikes . | . . . . . . . . . . . . . . . Average Backups 3 | . 1 1 1 2 2 2 2 3 4 4 4 4 4 4 Power . | . . . . . . . . . . . . . . . Propulsion . | . . . . . . . . . . . . . . . Utility 2 | . . . . 1 1 1 1 2 2 2 2 2 2 3 Weapon 1 | . 1 1 1 1 1 1 1 1 2 2 2 2 2 1 Tool/Special . | . . . . . . . . . . . . . . . Unused Backups 5 | . . . . . . . . . . . . . . 5 Power . | . . . . . . . . . . . . . . . Propulsion . | . . . . . . . . . . . . . . . Utility 4 | . . . . . . . . . . . . . . 4 Weapon 1 | . . . . . . . . . . . . . . 1 Tool/Special . | . . . . . . . . . . . . . . . Average Slot Usage (%) 12 | . 14 14 14 14 9 7 7 9 21 22 14 10 10 10 Device 1 | . . . . . . . . 2 . 4 . . . . Processor 5 | . . . . . . . . 3 11 11 11 10 10 8 Hackware 2 | . . . . . . . . 1 9 5 2 . . . Energy Gun 3 | . 14 14 14 14 9 7 7 . . . . . . 2 Peak Build Rating 20 | 2 1 1 1 1 1 1 1 14 15 20 12 9 20 11 Average Rating 8 | . 1 1 1 1 1 1 . 7 14 19 9 9 10 9 On Entrance 4 | . 1 1 1 1 1 1 1 . 12 12 12 9 9 10 Avg Prop Armor Cover (%) . | . . . . . . . . . . . . . . . Naked Turns 106 | . . . . . . . 7 99 . . . . . . Heaviest Build 3 | 2 2 2 2 2 2 2 2 3 . 3 . . . 2 Greatest Support 3 | 3 3 3 3 3 3 3 3 3 3 3 3 3 3 3 Greatest Overweight (x) . | . . . . . . . . . . . . . . . Average Overweight (x) . | . . . . . . . . . . . . . . . Largest Inventory Capacity 5 | 5 5 5 5 5 5 5 5 5 5 5 5 5 5 5 Average Capacity 5 | 5 5 5 5 5 5 5 5 5 5 5 5 5 5 5 Most Carried 5 | 1 1 1 2 2 2 2 2 5 4 5 4 4 5 5 Average Carried 3 | . 1 1 1 2 2 2 2 3 4 4 4 4 4 4 Final Capacity 5 | 5 5 5 5 5 5 5 5 5 5 5 5 5 5 5 Final Carried 5 | 1 1 1 2 2 2 2 2 4 4 4 4 4 5 5 Class Distribution -------------------- 89% | Mutant 10% | Hacker-Mutant Dominant Class ---------------- Mutant | -10/Materials Mutant | -10/Mines Mutant | -10/Exiles Mutant | -9/Mines Mutant | -8/Materials Mutant | -7/Factory Mutant | -7/DSF Mutant | -6/Factory Hacker-Mutant | -5/Factory Mutant | -5/Upper Caves Mutant | -5/Upper Caves Mutant | -4/Factory Mutant | -4/Waste Mutant | -4/Factory Resources | -11 -10 -10 -10 -9 -8 -7 -7 -6 -5 -5 -5 -4 -4 -4 ----------- Run | Yrd Mat Min Exi Min Mat Fac DSF Fac Fac Upp Upp Fac Was Fac Matter Collected 234 | 63 . . . . . . . . 66 . . . 105 . Remotely . | . . . . . . . . . . . . . . . Salvage Created . | . . . . . . . . . . . . . . . Parts . | . . . . . . . . . . . . . . . Haulers Intercepted . | . . . . . . . . . . . . . . . Recyclers Shooed 1 | . . . . . . . . . . . . . . 1 Parts Field Recycled . | . . . . . . . . . . . . . . . Retrieved Matter . | . . . . . . . . . . . . . . . Parts Self-Destructed 2 | . . . . . . . . . . 2 . . . . Prevented . | . . . . . . . . . . . . . . . Parts Restored . | . . . . . . . . . . . . . . . Kills | -11 -10 -10 -10 -9 -8 -7 -7 -6 -5 -5 -5 -4 -4 -4 ------- Run | Yrd Mat Min Exi Min Mat Fac DSF Fac Fac Upp Upp Fac Was Fac Combat Hostiles Destroyed . | . . . . . . . . . . . . . . . Classes Destroyed . | . . . . . . . . . . . . . . . Best Kill Streak . | . . . . . . . . . . . . . . . Combat Bots Only . | . . . . . . . . . . . . . . . Max Kills in Single Turn . | . . . . . . . . . . . . . . . Gunslinging . | . . . . . . . . . . . . . . . Exploded . | . . . . . . . . . . . . . . . Melee . | . . . . . . . . . . . . . . . Uniques/NPCs Destroyed . | . . . . . . . . . . . . . . . Combat | -11 -10 -10 -10 -9 -8 -7 -7 -6 -5 -5 -5 -4 -4 -4 -------- Run | Yrd Mat Min Exi Min Mat Fac DSF Fac Fac Upp Upp Fac Was Fac Hostile Shots Fired 193 | . . . . . . . 2 13 46 28 19 . . 85 Missed 84 | . . . . . . . 1 6 21 13 9 . . 34 Hits 109 | . . . . . . . 1 7 25 15 10 . . 51 Projectile 109 | . . . . . . . 1 7 25 15 10 . . 51 Critical Strikes 7 | . . . . . . . . 1 2 . 1 . . 3 Damage Taken 2611 | . . 14 . . 13 2 46 216 674 271 158 . . 1217 Core 2213 | . . 10 . . 4 2 14 86 654 153 132 . . 1158 Absorbed by Shields . | . . . . . . . . . . . . . . . Core Remaining (%) 81 | 100 . . . 96 99 . 97 89 . . 6 . . . Volleys Fired . | . . . . . . . . . . . . . . . Largest . | . . . . . . . . . . . . . . . Hottest . | . . . . . . . . . . . . . . . Shots Fired . | . . . . . . . . . . . . . . . Gun . | . . . . . . . . . . . . . . . Cannon . | . . . . . . . . . . . . . . . Launcher . | . . . . . . . . . . . . . . . Special . | . . . . . . . . . . . . . . . Kinetic . | . . . . . . . . . . . . . . . Thermal . | . . . . . . . . . . . . . . . Explosive . | . . . . . . . . . . . . . . . Electromagnetic . | . . . . . . . . . . . . . . . Robot Hit Streak . | . . . . . . . . . . . . . . . Robot Miss Streak . | . . . . . . . . . . . . . . . Penetration Max . | . . . . . . . . . . . . . . . Secondary Targets . | . . . . . . . . . . . . . . . Shots Hit Robots . | . . . . . . . . . . . . . . . Core Hits 3 | . . 1 . . . . . . 1 . . . . 1 Critical Kills . | . . . . . . . . . . . . . . . Critical Parts Destroyed . | . . . . . . . . . . . . . . . Critical Strikes . | . . . . . . . . . . . . . . . Melee Attacks 2 | . . . . . . . . 2 . . . . . . Impact 2 | . . . . . . . . 2 . . . . . . Slashing . | . . . . . . . . . . . . . . . Piercing . | . . . . . . . . . . . . . . . Sneak Attacks . | . . . . . . . . . . . . . . . Combat Hostiles . | . . . . . . . . . . . . . . . Follow-up Attacks . | . . . . . . . . . . . . . . . Damage Inflicted 122 | . . 32 . . 26 5 . 4 13 . . . . 42 Guns . | . . . . . . . . . . . . . . . Cannons . | . . . . . . . . . . . . . . . Explosions . | . . . . . . . . . . . . . . . Melee . | . . . . . . . . . . . . . . . Ramming 122 | . . 32 . . 26 5 . 4 13 . . . . 42 Kinetic . | . . . . . . . . . . . . . . . Thermal . | . . . . . . . . . . . . . . . Explosive . | . . . . . . . . . . . . . . . Electromagnetic . | . . . . . . . . . . . . . . . Impact . | . . . . . . . . . . . . . . . Slashing . | . . . . . . . . . . . . . . . Piercing . | . . . . . . . . . . . . . . . Highest Corruption . | . . . . . . . . . . . . . . . Average Corruption . | . . . . . . . . . . . . . . . Corruption Purged . | . . . . . . . . . . . . . . . Corruption Blocked . | . . . . . . . . . . . . . . . Overload Shots . | . . . . . . . . . . . . . . . Overflow Damage . | . . . . . . . . . . . . . . . Projectiles . | . . . . . . . . . . . . . . . Explosions . | . . . . . . . . . . . . . . . Melee . | . . . . . . . . . . . . . . . Knockbacks . | . . . . . . . . . . . . . . . Impact . | . . . . . . . . . . . . . . . Kinetic . | . . . . . . . . . . . . . . . Secondary . | . . . . . . . . . . . . . . . Self-Inflicted Damage 55 | . . 14 . . 13 2 . 2 6 . . . . 18 Shots . | . . . . . . . . . . . . . . . Rammed 25 | . . 5 . . 6 1 . 1 2 . . . . 10 Targets Rammed 25 | . . 5 . . 6 1 . 1 2 . . . . 10 Kicked . | . . . . . . . . . . . . . . . Crushed . | . . . . . . . . . . . . . . . Highest Temperature 6 | . . . . . . . . . 6 . . . . . Average Temperature 6 | . . . . . . . . . 6 . . . . . Received Heat Transfer 286 | . . . . . . . . . 163 27 45 . . 51 Siege Activations . | . . . . . . . . . . . . . . . Martial Activations . | . . . . . . . . . . . . . . . Shielding Activations . | . . . . . . . . . . . . . . . Robots Disrupted . | . . . . . . . . . . . . . . . Combat Hostiles . | . . . . . . . . . . . . . . . Robots Corrupted . | . . . . . . . . . . . . . . . Combat Hostiles . | . . . . . . . . . . . . . . . Parts Fried . | . . . . . . . . . . . . . . . Impact Corruptions . | . . . . . . . . . . . . . . . Robots Melted . | . . . . . . . . . . . . . . . Combat Hostiles . | . . . . . . . . . . . . . . . Parts Melted . | . . . . . . . . . . . . . . . Heat Transferred . | . . . . . . . . . . . . . . . Parts Sabotaged . | . . . . . . . . . . . . . . . Parts Stolen . | . . . . . . . . . . . . . . . Parts Stripped . | . . . . . . . . . . . . . . . Power Chain Reactions . | . . . . . . . . . . . . . . . Alert | -11 -10 -10 -10 -9 -8 -7 -7 -6 -5 -5 -5 -4 -4 -4 ------- Run | Yrd Mat Min Exi Min Mat Fac DSF Fac Fac Upp Upp Fac Was Fac Maximum Alert Level . | . . . . . . . . . . . . . . . Low Security (%) 100 | 100 100 100 . 100 100 100 100 100 100 . . 100 100 100 Level 1 . | . . . . . . . . . . . . . . . Level 2 . | . . . . . . . . . . . . . . . Level 3 . | . . . . . . . . . . . . . . . Level 4 . | . . . . . . . . . . . . . . . Level 5 . | . . . . . . . . . . . . . . . High Security . | . . . . . . . . . . . . . . . Max Security . | . . . . . . . . . . . . . . . Peak Influence 74 | . . 15 . . 15 7 15 35 50 . . . . 74 Initial 2 | . . . . . . 2 . 2 . . . . . . Average 13 | . . 4 . . 2 3 4 7 20 . . . . 30 Influence Increases 514 | . . 15 . . 15 7 15 105 90 75 . . . 192 Successful Hack 49 | . . . . . . 7 . . . . . . . 42 Disable Machine 30 | . . . . . . . . 30 . . . . . . Partial Spotted 75 | . . 15 . . 15 . . 15 15 . . . . 15 Lose Combat Pursuer 360 | . . . . . . . 15 60 75 75 . . . 135 Influence Decreases 477 | . . 10 5 . 10 12 10 110 80 70 14 1 . 155 Entered New Map 20 | . . . 5 . . 3 . 3 . 4 4 1 . . Time Decay 397 | . . 10 . . 10 9 . 107 70 46 . . . 145 Lost Part 60 | . . . . . . . 10 . 10 20 10 . . 10 Squads Dispatched 7 | . . . . . . 1 1 1 1 . . . . 3 Investigation 2 | . . . . . . 1 . . . . . . . 1 Extermination 2 | . . . . . . . . 1 . . . . . 1 Reinforcement 3 | . . . . . . . 1 . 1 . . . . 1 Assault . | . . . . . . . . . . . . . . . Garrison . | . . . . . . . . . . . . . . . Intercept . | . . . . . . . . . . . . . . . Searches Triggered . | . . . . . . . . . . . . . . . Construction Impeded . | . . . . . . . . . . . . . . . Haulers Reinforced . | . . . . . . . . . . . . . . . Active Scanning Responses . | . . . . . . . . . . . . . . . Cargo Convoy Interrupts . | . . . . . . . . . . . . . . . Stealth | -11 -10 -10 -10 -9 -8 -7 -7 -6 -5 -5 -5 -4 -4 -4 --------- Run | Yrd Mat Min Exi Min Mat Fac DSF Fac Fac Upp Upp Fac Was Fac Distress Signals 5 | . . 1 . . . . . 2 . . . . . 2 Communications Jammed . | . . . . . . . . . . . . . . . Distress Signals . | . . . . . . . . . . . . . . . Times Spotted 71 | . 1 . . . . . 1 9 13 9 9 . . 29 Peak Tracking Total 15 | . 1 . . . . . 1 4 6 7 9 . . 15 Tactical Retreats 15 | . . . . . . . 1 4 4 2 . . . 4 Traps | -11 -10 -10 -10 -9 -8 -7 -7 -6 -5 -5 -5 -4 -4 -4 ------- Run | Yrd Mat Min Exi Min Mat Fac DSF Fac Fac Upp Upp Fac Was Fac Traps Triggered 4 | . . . . . . . 1 1 . . . 1 . 1 Indirectly . | . . . . . . . . . . . . . . . Trap Hack Attempts . | . . . . . . . . . . . . . . . Triggered . | . . . . . . . . . . . . . . . Disarmed . | . . . . . . . . . . . . . . . Reprogrammed . | . . . . . . . . . . . . . . . Reused . | . . . . . . . . . . . . . . . Traps Extracted . | . . . . . . . . . . . . . . . Installed . | . . . . . . . . . . . . . . . Triggered . | . . . . . . . . . . . . . . . Machines | -11 -10 -10 -10 -9 -8 -7 -7 -6 -5 -5 -5 -4 -4 -4 ---------- Run | Yrd Mat Min Exi Min Mat Fac DSF Fac Fac Upp Upp Fac Was Fac Machines Disabled 2 | . . . . . . . . 2 . . . . . . Max in Single Turn 1 | . . . . . . . . 1 . . . . . . Machines Repaired . | . . . . . . . . . . . . . . . Machines Dismantled . | . . . . . . . . . . . . . . . Machines Sabotaged . | . . . . . . . . . . . . . . . Overloaded Fab Kills . | . . . . . . . . . . . . . . . Hacking | -11 -10 -10 -10 -9 -8 -7 -7 -6 -5 -5 -5 -4 -4 -4 --------- Run | Yrd Mat Min Exi Min Mat Fac DSF Fac Fac Upp Upp Fac Was Fac Machines Accessed 7 | . . . 1 . . 2 . . . 1 . . . 3 Terminals 5 | . . . . . . 2 . . . . . . . 3 Fabricators . | . . . . . . . . . . . . . . . Repair Stations . | . . . . . . . . . . . . . . . Recycling Units . | . . . . . . . . . . . . . . . Scanalyzers . | . . . . . . . . . . . . . . . Garrison Access . | . . . . . . . . . . . . . . . Total Hacks 15 | . . . 1 . . 6 . . . 1 . . . 7 Successful 7 | . . . 1 . . 2 . . . 1 . . . 3 Failed 8 | . . . . . . 4 . . . . . . . 4 Catastrophic 2 | . . . . . . . . . . . . . . 2 Database Lockouts . | . . . . . . . . . . . . . . . Manual 1 | . . . 1 . . . . . . . . . . . Terminals 13 | . . . . . . 6 . . . . . . . 7 Fabricators . | . . . . . . . . . . . . . . . Repair Stations . | . . . . . . . . . . . . . . . Recycling Units . | . . . . . . . . . . . . . . . Scanalyzers . | . . . . . . . . . . . . . . . Garrison Access . | . . . . . . . . . . . . . . . Terminal Hacks 7 | . . . 1 . . 2 . . . 1 . . . 3 Open Door 1 | . . . . . . . . . . 1 . . . . Open DSF 1 | . . . . . . 1 . . . . . . . . Branch Access Points 1 | . . . . . . 1 . . . . . . . . Locate Traps 1 | . . . . . . . . . . . . . . 1 Zone Layout 2 | . . . . . . . . . . . . . . 2 Proto ID Catalog 1 | . . . 1 . . . . . . . . . . . Fabricator Hacks . | . . . . . . . . . . . . . . . Repair Station Hacks . | . . . . . . . . . . . . . . . Recycling Unit Hacks . | . . . . . . . . . . . . . . . Scanalyzer . | . . . . . . . . . . . . . . . Garrison Access Hacks . | . . . . . . . . . . . . . . . Unauthorized Hacks . | . . . . . . . . . . . . . . . Terminals . | . . . . . . . . . . . . . . . Fabricators . | . . . . . . . . . . . . . . . Repair Stations . | . . . . . . . . . . . . . . . Recycling Units . | . . . . . . . . . . . . . . . Scanalyzers . | . . . . . . . . . . . . . . . Garrison Access . | . . . . . . . . . . . . . . . Data Cores Recovered . | . . . . . . . . . . . . . . . Used . | . . . . . . . . . . . . . . . Hacking Detections 4 | . . . . . . 2 . . . . . . . 2 Full Trace Events 2 | . . . . . . 1 . . . . . . . 1 Feedback Events . | . . . . . . . . . . . . . . . Feedback Blocked . | . . . . . . . . . . . . . . . Robot Schematics Acquired . | . . . . . . . . . . . . . . . Robots Built . | . . . . . . . . . . . . . . . Authchips . | . . . . . . . . . . . . . . . Time . | . . . . . . . . . . . . . . . Total Robot Build Rating . | . . . . . . . . . . . . . . . Part Schematics Acquired . | . . . . . . . . . . . . . . . Parts Built . | . . . . . . . . . . . . . . . Authchips . | . . . . . . . . . . . . . . . Time . | . . . . . . . . . . . . . . . Total Part Build Rating . | . . . . . . . . . . . . . . . Part Studies Acquired . | . . . . . . . . . . . . . . . Parts Repaired . | . . . . . . . . . . . . . . . Time . | . . . . . . . . . . . . . . . Parts Recycled . | . . . . . . . . . . . . . . . Recycled Matter . | . . . . . . . . . . . . . . . Retrieved Matter . | . . . . . . . . . . . . . . . Retrieved Components . | . . . . . . . . . . . . . . . Parts Scanalyzed . | . . . . . . . . . . . . . . . Part Schematics Acquired . | . . . . . . . . . . . . . . . Parts Damaged . | . . . . . . . . . . . . . . . Bothacking | -11 -10 -10 -10 -9 -8 -7 -7 -6 -5 -5 -5 -4 -4 -4 ------------ Run | Yrd Mat Min Exi Min Mat Fac DSF Fac Fac Upp Upp Fac Was Fac Used RIF Installer . | . . . . . . . . . . . . . . . Robots Hacked . | . . . . . . . . . . . . . . . Non-combat . | . . . . . . . . . . . . . . . Combat . | . . . . . . . . . . . . . . . Robot Hacks Applied . | . . . . . . . . . . . . . . . Relay Couplers Released . | . . . . . . . . . . . . . . . Fabnet Peak Effective % . | . . . . . . . . . . . . . . . Robots Rewired . | . . . . . . . . . . . . . . . Allies Hacked . | . . . . . . . . . . . . . . . Hacks Repelled . | . . . . . . . . . . . . . . . Allies | -11 -10 -10 -10 -9 -8 -7 -7 -6 -5 -5 -5 -4 -4 -4 -------- Run | Yrd Mat Min Exi Min Mat Fac DSF Fac Fac Upp Upp Fac Was Fac Total Allies . | . . . . . . . . . . . . . . . Largest Group . | . . . . . . . . . . . . . . . Highest-Rated Group . | . . . . . . . . . . . . . . . Highest-Rated Ally . | . . . . . . . . . . . . . . . Total Orders . | . . . . . . . . . . . . . . . Ally Attacks . | . . . . . . . . . . . . . . . Total Damage . | . . . . . . . . . . . . . . . Kills . | . . . . . . . . . . . . . . . Allies Corrupted . | . . . . . . . . . . . . . . . Allies Melted . | . . . . . . . . . . . . . . . Intel | -11 -10 -10 -10 -9 -8 -7 -7 -6 -5 -5 -5 -4 -4 -4 ------- Run | Yrd Mat Min Exi Min Mat Fac DSF Fac Fac Upp Upp Fac Was Fac Active Infowar (turns) 1021 | . . . . . . . . 284 185 155 8 17 51 321 Optics 1021 | . . . . . . . . 284 185 155 8 17 51 321 Robot Analysis Total . | . . . . . . . . . . . . . . . Derelict Logs Recovered 1 | . . 1 . . . . . . . . . . . . Drone Launches . | . . . . . . . . . . . . . . . Drone Recoveries . | . . . . . . . . . . . . . . . Exploration | -11 -10 -10 -10 -9 -8 -7 -7 -6 -5 -5 -5 -4 -4 -4 ------------- Run | Yrd Mat Min Exi Min Mat Fac DSF Fac Fac Upp Upp Fac Was Fac Turns Passed 1542 | 16 33 39 110 16 46 54 42 449 185 155 8 17 51 321 Spaces Moved 2819 | 24 66 67 217 32 79 105 84 753 352 302 16 34 91 597 Core 2819 | 24 66 67 217 32 79 105 84 753 352 302 16 34 91 597 Treads . | . . . . . . . . . . . . . . . Legs . | . . . . . . . . . . . . . . . Wheels . | . . . . . . . . . . . . . . . Hover . | . . . . . . . . . . . . . . . Flight . | . . . . . . . . . . . . . . . Fastest Speed 50 | 50 50 50 50 50 50 50 50 50 50 50 50 50 50 50 Average Speed 50 | 50 50 50 50 50 50 50 50 50 50 50 50 50 50 50 Slowest Speed 50 | 50 50 50 50 50 50 50 50 50 50 50 50 50 50 50 Overloaded Moves . | . . . . . . . . . . . . . . . Propulsion Burnouts . | . . . . . . . . . . . . . . . Robots Hopped . | . . . . . . . . . . . . . . . Potential Cave-ins . | . . . . . . . . . . . . . . . Cave-ins Triggered . | . . . . . . . . . . . . . . . Exploration Rate (%) 27 | 3 17 18 60 13 13 4 79 23 14 62 4 2 75 22 Regions Visited 14 Branch Regions 5 Pre-discovered Areas . | . . . . . . . . . . . . . . . Known Exits Taken 6 | . . . . . 1 1 . 1 1 1 1 . . . Unknown Exits Taken 5 | 1 1 1 1 1 . . . . . . . . . . Scrap Searched . | . . . . . . . . . . . . . . . Spaces Dug . | . . . . . . . . . . . . . . . Terrain Destroyed . | . . . . . . . . . . . . . . . Melee . | . . . . . . . . . . . . . . . Projectile . | . . . . . . . . . . . . . . . AOE . | . . . . . . . . . . . . . . . Terrain Rammed . | . . . . . . . . . . . . . . . Walls Destroyed . | . . . . . . . . . . . . . . . Machines Disabled . | . . . . . . . . . . . . . . . Actions | -11 -10 -10 -10 -9 -8 -7 -7 -6 -5 -5 -5 -4 -4 -4 --------- Run | Yrd Mat Min Exi Min Mat Fac DSF Fac Fac Upp Upp Fac Was Fac Total 2929 | 26 65 71 217 31 84 105 83 820 359 304 15 34 95 620 Wait 67 | . . . . . . . . 56 5 . . . . 6 Move 2806 | 23 65 66 216 31 78 104 83 752 351 301 15 34 90 597 Hop . | . . . . . . . . . . . . . . . Pick Up 8 | . . . 1 . . . . 3 . 1 . . . 3 Fast Attach 10 | 2 . . . . . . . 3 1 1 . . 2 1 Attach 4 | . . . . . . . . 2 . 1 . . . 1 Detach 3 | 1 . . . . . . . 1 . . . . 1 . Swap . | . . . . . . . . . . . . . . . Drop 3 | . . . . . . . . . . . . . 1 2 Fire . | . . . . . . . . . . . . . . . Melee 2 | . . . . . . . . 2 . . . . . . Ram 25 | . . 5 . . 6 1 . 1 2 . . . . 10 Kick . | . . . . . . . . . . . . . . . Crush . | . . . . . . . . . . . . . . . Escape Stasis . | . . . . . . . . . . . . . . . Rewire 1 | . . . . . . . . . . . . . 1 . Trap . | . . . . . . . . . . . . . . . Miscellaneous . | . . . . . . . . . . . . . . . Route ------- -11/Scrapyard -10/Materials -10/Mines -10/Exiles -9/Mines -8/Materials -7/Factory (discovered 4 exits: Sto / Low x2 / DSF) -7/DSF -6/Factory -5/Factory -5/Upper Caves -5/Upper Caves -4/Factory -4/Waste -4/Factory (discovered 1 exit: [*Res]) History --------- Turn | Location | Event 5 | -11/Scrapyard | Discovered new exit (range 16) 17 | -11/Scrapyard | Entered Materials 47 | -10/Materials | Discovered new exit (range 6) 50 | -10/Materials | Entered Mines 72 | -10/Mines | Learned location of 1 exit from Materials 81 | -10/Mines | Assembled infested the area 86 | -10/Mines | Assisted by a Guerilla fighting off Assembled 87 | -10/Mines | Deemed a non-threat by the Exiles lab entrance 87 | -10/Mines | Discovered new exit (range 5) 89 | -10/Mines | Entered Exiles 103 | -10/Exiles | Met 8R-AWN 110 | -10/Exiles | Met EX-HEX 125 | -10/Exiles | Met EX-BIN 131 | -10/Exiles | Aligned with FarCom system 131 | -10/Exiles | Given EX-Vault access code 143 | -10/Exiles | Opened EX-Vault 147 | -10/Exiles | Found Cloak of Protection 158 | -10/Exiles | Warned to stay clear of 0b10 Research branches 174 | -10/Exiles | Met EX-DEC 193 | -10/Exiles | Discovered new exit (range 10) 199 | -10/Exiles | Left Exiles lab with Cloak of Protection 199 | -10/Exiles | Entered Mines 209 | -9/Mines | Discovered new exit (range 10) 215 | -9/Mines | Entered Materials 215 | -8/Materials | Evolved 4 slots: Utility x4 216 | -8/Materials | Identified exit to Factory 261 | -8/Materials | Entered Factory 261 | -7/Factory | Evolved 2 slots: Utility x2 281 | -7/Factory | Identified exit to Storage 281 | -7/Factory | Identified exit to Lower Caves 313 | -7/Factory | Build established: Mutant 314 | -7/Factory | Identified exit to DSF 315 | -7/Factory | Entered DSF 331 | -7/DSF | Additional patrols routed to DSF 352 | -7/DSF | Discovered new exit (range 11) 357 | -7/DSF | Entered Factory 357 | -6/Factory | Evolved 2 slots: Utility x2 803 | -6/Factory | Discovered new exit (range 4) 806 | -6/Factory | Identified exit to Factory 806 | -6/Factory | Entered another Factory area 806 | -5/Factory | Evolved 2 slots: Utility x2 854 | -5/Factory | Spotted B-75 Beast 968 | -5/Factory | Core integrity fell below 50% 981 | -5/Factory | Discovered new exit (range 15) 987 | -5/Factory | Identified exit to Upper Caves 991 | -5/Factory | Entered Upper Caves 1120 | -5/Upper Caves | Attracted the attention of an 0b10 outpost 1144 | -5/Upper Caves | Discovered new exit (range 4) 1145 | -5/Upper Caves | Identified exit to Upper Caves 1146 | -5/Upper Caves | Core integrity fell below 20% 1146 | -5/Upper Caves | Entered another Upper Caves area 1149 | -5/Upper Caves | Discovered new exit (range 9) 1154 | -5/Upper Caves | Identified exit to Factory 1154 | -5/Upper Caves | Entered Factory 1154 | -4/Factory | Evolved 2 slots: Utility x2 1171 | -4/Factory | Sucked down chute 1171 | -4/Factory | Entered Waste 1171 | -4/Waste | The area was eerily silent 1179 | -4/Waste | Lost 3 parts (3u) 1187 | -4/Waste | Found Prototype Device 1187 | -4/Waste | Identified Exp. Weapon Cycler 1215 | -4/Waste | Discovered new exit (range 12) 1221 | -4/Waste | Identified exit to Factory 1222 | -4/Waste | Entered Factory 1527 | -4/Factory | Core integrity fell below 50% 1527 | -4/Factory | Spotted B-86 Titan 1536 | -4/Factory | Discovered new exit (range 15) 1541 | -4/Factory | Core integrity fell below 20% 1543 | -4/Factory | Destroyed by S-27 Virus with Autogun Last Messages --------------- Found 11 traps in 2 arrays: 6x Stasis Trap 5x Alarm Trap Map updated. 01526_ Slammed into W-44 Eye. 01526_ Destabilizing: Core damaged (-57). 01527_ C-30 ARC bursts open, deploying its payload. 01527_ H-77 Assassin unfolds itself. 01527_ Penetrated by Slug. 01527_ Med. Laser destroyed. 01527_ Slug penetrates Wall. 01527_ Penetrated by Slug. 01527_ Slug penetrates Wall. 01527_ Penetrated by Slug. 01536_ EXIT=FOUND 01536_ K-01 Serf knocked back. 01536_ K-01 Serf destroyed. 01538_ Knocked back. 01540_ Penetrated by Slug. 01540_ Knocked back. Map ----- +----------------------------------------------------+ | ????????????????????????????????????? | | ????????????????????????????????????? | | ??????????????????????############### | | ??????????????????????# = | | ??????????????????????# | | ??????????????????????? """"" !!! | | ??????????????????????# """"" !!! | | ??????????????????????# """ !!! | | ??????????????????????# | | ??????????????????#################+# | | ??????????????????? #??#% | | ????????????????????"" #??# | | ??????????????????#""" " " " " #?## | | ??????????????????#"S " " " " ###" | | ??????????????????#""" " " " " + | | ??????????????????# "" " " " " #### | | ??????????????????# " " " " #??# | | ??????????????????# " " " " #??# | | ??????????????????# " " " " #??# | | ??????????????????# " " " " #??# | | ??????????????????# " " " " #??# | | ??????????????????# #??# | | ???????####+#############+######### | | ???????# % k% hh | | ???????# s | | ???????# H @ s % | | ???????# % | | ???????# ss | | ???????####+####### ################# | | ??????????????????# #?????????? | | ??????????????????# #?????????? | | ??????????????????# #?????????? | | ??????????????????# #?????????? | | ??????????????????+ #?????????? """" | | ??????????????????# #?????????? """" | | ??????????????????# #???????????????? | | ??????????????????+ #???????????????? | | ???????????????????+????????????????? | | ????????????????????????????????????? | | ????????????????????????????????????? | | ????????????????????????????????????? | | ????????????????????????????????????? | | ????????????????????????????????????? | | ????????????????????????????????????? | | ????????????????????????????????????? | | ????????????????????????????????????? | | ????????????????????????????????????? | | ????????????????????????????????????? | | ????????????????????????????????????? | | ????????????????????????????????????? | +----------------------------------------------------+ Best States ------------- Heat Dissipation 43 Energy Generation 5 Energy Capacity 100 Matter Stores 300 Matter Capacity 300 Sight Range 22 Terrain Scan Density 10 Evasion (%) 62 Offensive Hacking 10 Defensive Hacking 10 Item Schematics ----------------- None Robot Schematics ------------------ None Fabricated ------------ Nothing Repaired ---------- Nothing Studied --------- None Alien Tech Used ----------------- None Achievements -------------- None Challenges ------------ None Game ------ Seed SwordPulseLauncher Manual? 0 Play Time 00:19:44 Cumulative 635.2 hours Start 2026.09.02 @ 17:38:16 End 2026.09.02 @ 18:27:43 Sessions 1 Manual Loads 0 Difficulty Rogue Special Mode None Game No. 286 Rogue 286 Adventurer 0 Explorer 0 Win Type - Total 38 Types 17/4/6/2/1/2/2/2/1/1 Lore% 91 Gallery% 83 Achievement% 78 Wizard Run 0 Options --------- Layout 0 ASCII 0 Keyboard 1 Movement Arrows Keybinds 0 Fullscreen 2 Font 18/Terminus Map View 76x50 Zoom Use 0% Tactical HUD 1 Map Filters BRIGHTNESS(90)|SATURATION(90) Filters NONE Steam 1 RUN: 2670de1a-b824-41b0-80e9-b6a2676a305a